fUST/lending_fUST_20250227
["ID","MTS","AMOUNT","RATE_DAILY","PERIOD"]
[354702804,1740630642455,-502.66,0.00046849,120]
[354702806,1740630642464,-500.0,0.00046849,120]
[354702807,1740630642473,-500.0,0.00046849,120]
[354702809,1740630642483,-830.48,0.00046849,120]
[354702811,1740630642492,-500.0,0.00046849,120]
[354702813,1740630642501,-500.0,0.00046849,120]
[354702815,1740630642510,-500.0,0.00046849,120]
[354702816,1740630642519,-645.69,0.00046849,120]
[354702817,1740630642528,-794.77,0.00046849,120]
[354702818,1740630642537,-1440.79,0.00046849,120]
[354702819,1740630642547,-500.0,0.00046849,120]
[354702820,1740630642556,-500.0,0.00046849,120]
[354702821,1740630642566,-344.23040729,0.00046849,120]
[354702822,1740630642576,-1321.71,0.00046849,120]
[354702823,1740630642587,-305.11057319,0.00046849,120]
[354702824,1740630642597,-675.47,0.00046849,120]
[354702825,1740630642611,-784.51,0.00046849,120]
[354702826,1740630642620,-500.0,0.00046849,120]
[354702827,1740630642629,-1050.09,0.00046849,120]
[354702828,1740630642638,-500.0,0.00046849,120]
[354702829,1740630642648,-517.2,0.00046849,120]
[354702830,1740630642658,-798.48,0.00046849,120]
[354702831,1740630642667,-500.0,0.00046849,120]
[354702832,1740630642678,-700.09,0.00046849,120]
[354702833,1740630642688,-500.0,0.00046849,120]
[354702834,1740630642697,-500.0,0.00046849,120]
[354702835,1740630642707,-500.0,0.00046849,120]
[354702836,1740630642716,-500.0,0.00046849,120]
[354702837,1740630642725,-685.02,0.00046849,120]
[354702838,1740630642735,-500.0,0.00046849,120]
[354702839,1740630642745,-682.13,0.00046849,120]
[354702840,1740630642754,-500.0,0.00046849,120]
[354702841,1740630642763,-500.0,0.00046849,120]
[354702842,1740630642773,-500.0,0.00046849,120]
[354702843,1740630642783,-2569.83,0.00046849,120]
[354702844,1740630642792,-500.0,0.00046849,120]
[354702845,1740630642802,-500.0,0.00046849,120]
[354702846,1740630642812,-500.0,0.00046849,120]
[354702847,1740630642822,-664.21,0.00046849,120]
[354702848,1740630642833,-500.0,0.00046849,120]
[354702849,1740630642842,-500.0,0.00046849,120]
[354702850,1740630642852,-500.0,0.00046849,120]
[354702851,1740630642862,-500.0,0.00046849,120]
[354702852,1740630642872,-500.0,0.00046849,120]
[354702853,1740630642882,-1783.84,0.00046849,120]
[354702854,1740630642891,-2817.09,0.00046849,120]
[354702855,1740630642900,-500.0,0.00046849,120]
[354702856,1740630642910,-500.0,0.00046849,120]
[354702857,1740630642919,-500.0,0.00046849,120]
[354702858,1740630642928,-1700.36,0.00046849,120]
[354702859,1740630642938,-640.33,0.00046849,120]
[354702860,1740630642947,-2537.94,0.00046849,120]
[354702861,1740630642957,-500.0,0.00046849,120]
[354702862,1740630642967,-723.9,0.00046849,120]
[354702863,1740630642976,-639.67,0.00046849,120]
[354702864,1740630642986,-3639.45,0.00046849,120]
[354702865,1740630642995,-1137.78,0.00046849,120]
[354702866,1740630643004,-553.3441229,0.00046849,120]
[354702867,1740630643014,-500.0,0.00046849,120]
[354702868,1740630643023,-1278.73,0.00046849,120]
[354702869,1740630643032,-500.0,0.00046849,120]
[354702870,1740630643042,-500.0,0.00046849,120]
[354702871,1740630643051,-2240.48,0.00046849,120]
[354702872,1740630643060,-731.25,0.00046849,120]
[354702873,1740630643069,-500.0,0.00046849,120]
[354702874,1740630643079,-500.0,0.00046849,120]
[354702875,1740630643088,-500.0,0.00046849,120]
[354702876,1740630643098,-520.39,0.00046849,120]
[354702877,1740630643107,-1182.36,0.00046849,120]
[354702878,1740630643116,-833.66,0.00046849,120]
[354702879,1740630643126,-500.0,0.00046849,120]
[354702880,1740630643135,-604.18,0.00046849,120]
[354702881,1740630643144,-500.0,0.00046849,120]
[354702882,1740630643154,-596.21,0.00046849,120]
[354702884,1740630643163,-523.15,0.00046849,120]
[354702885,1740630643172,-500.0,0.00046849,120]
[354702887,1740630643182,-500.0,0.00046849,120]
[354702888,1740630643191,-209.15329365,0.00046849,120]
[354702890,1740630643200,-500.0,0.00046849,120]
[354702892,1740630643210,-1478.0,0.00046849,120]
[354702894,1740630643220,-1517.22,0.00046849,120]
[354702896,1740630643229,-3011.34,0.00046849,120]
[354702898,1740630643238,-1623.31,0.00046849,120]
[354702899,1740630643247,-624.09,0.00046849,120]
[354702901,1740630643256,-500.0,0.00046849,120]
[354702903,1740630643266,-600.71,0.00046849,120]
[354702905,1740630643275,-500.0,0.00046849,120]
[354702907,1740630643284,-1486.29,0.00046849,120]
[354702909,1740630643294,-500.0,0.00046849,120]
[354702911,1740630643303,-500.0,0.00046849,120]
[354702913,1740630643312,-1228.91,0.00046849,120]
[354702915,1740630643321,-500.0,0.00046849,120]
[354702917,1740630643331,-734.33,0.00046849,120]
[354702919,1740630643340,-500.0,0.00046849,120]
[354702921,1740630643350,-1058.92,0.00046849,120]
[354702923,1740630643359,-791.0,0.00046849,120]
[354702925,1740630643368,-500.0,0.00046849,120]
[354702927,1740630643378,-500.0,0.00046849,120]
[354702929,1740630643388,-500.0,0.00046849,30]
[354702931,1740630643397,-1820.74,0.00046849,120]
[354702933,1740630643407,-675.66,0.00046849,120]
[354702936,1740630643416,-500.0,0.00046849,120]
[354702938,1740630643426,-1399.76,0.00046849,120]
[354702940,1740630643435,-510.06937238,0.00046849,120]
[354702941,1740630643444,-500.0,0.00046849,120]
[354702943,1740630643455,-789.91,0.00046849,120]
[354702945,1740630643464,-500.0,0.00046849,120]
[354702947,1740630643473,-500.0,0.00046849,120]
[354702949,1740630643483,-716.03,0.00046849,120]
[354702951,1740630643492,-500.0,0.00046849,120]
[354702953,1740630643500,-500.0,0.00046849,120]
[354702954,1740630643510,-2375.59,0.00046849,120]
[354702956,1740630643519,-1106.8,0.00046849,120]
[354702959,1740630643528,-538.05,0.00046849,120]
[354702960,1740630643538,-857.0,0.00046849,120]
[354702962,1740630643547,-527.43,0.00046849,120]
[354702964,1740630643557,-1900.59,0.00046849,120]
[354702966,1740630643566,-500.0,0.00046849,120]
[354702968,1740630643575,-500.0,0.00046849,120]
[354702969,1740630643586,-706.0,0.00046849,120]
[354702970,1740630643595,-500.0,0.00046849,15]
[354702971,1740630643608,-500.0,0.00046849,120]
[354702972,1740630643618,-592.18,0.00046849,120]
[354702973,1740630643631,-814.71,0.00046849,120]
[354702974,1740630643640,-519.1,0.00046849,120]
[354702975,1740630643651,-798.3,0.00046849,120]
[354702976,1740630643660,-500.0,0.00046849,120]
[354702977,1740630643670,-500.0,0.00046849,120]
[354702978,1740630643679,-500.0,0.00046849,120]
[354702979,1740630643689,-500.0,0.00046849,120]
[354702980,1740630643699,-776.16,0.00046849,120]
[354702981,1740630643708,-500.0,0.00046849,120]
[354702982,1740630643717,-772.95,0.00046849,120]
[354702983,1740630643727,-2695.43,0.00046849,120]
[354702984,1740630643736,-1015.01,0.00046849,120]
[354702985,1740630643746,-500.0,0.00046849,120]
[354702986,1740630643756,-658.28,0.00046849,120]
[354702987,1740630643765,-792.87,0.00046849,120]
[354702988,1740630643774,-1162.89,0.00046849,120]
[354702989,1740630643784,-1402.1,0.00046849,120]
[354702990,1740630643794,-500.0,0.00046849,120]
[354702991,1740630643804,-500.0,0.00046849,120]
[354702992,1740630643814,-500.0,0.00046849,120]
[354702993,1740630643823,-500.0,0.00046849,120]
[354702994,1740630643834,-500.0,0.00046849,120]
[354702995,1740630643843,-743.1,0.00046849,120]
[354702996,1740630643853,-500.0,0.00046849,120]
[354702997,1740630643862,-1231.6,0.00046849,120]
[354702998,1740630643872,-500.0,0.00046849,120]
[354702999,1740630643882,-714.18,0.00046849,120]
[354703000,1740630643891,-1026.71,0.00046849,120]
[354703001,1740630643900,-912.45,0.00046849,120]
[354703002,1740630643910,-500.0,0.00046849,120]
[354703003,1740630643957,-500.0,0.00046849,120]
[354703004,1740630643966,-500.0,0.00046849,120]
[354703005,1740630643975,-1786.14,0.00046849,120]
[354703006,1740630643984,-548.47,0.00046849,120]
[354703007,1740630643993,-500.0,0.00046849,120]
[354703008,1740630644002,-500.0,0.00046849,120]
[354703009,1740630644011,-2993.55,0.00046849,120]
[354703010,1740630644020,-500.0,0.00046849,120]
[354703011,1740630644029,-573.21,0.00046849,120]
[354703012,1740630644038,-508.13,0.00046849,120]
[354703013,1740630644047,-500.0,0.00046849,120]
[354703014,1740630644056,-151.0,0.00046849,120]
[354703015,1740630644065,-500.0,0.00046849,120]
[354703016,1740630644074,-721.6,0.00046849,120]
[354703017,1740630644085,-1977.45,0.00046849,120]
[354703018,1740630644094,-1208.96,0.00046849,120]
[354703019,1740630644104,-500.0,0.00046849,120]
[354703020,1740630644113,-574.26,0.00046849,120]
[354703021,1740630644122,-2615.73,0.00046849,120]
[354703022,1740630644131,-1260.74,0.00046849,120]
[354703023,1740630644140,-798.33,0.00046849,120]
[354703024,1740630644149,-511.11,0.00046849,120]
[354703025,1740630644159,-500.0,0.00046849,120]
[354703026,1740630644167,-500.0,0.00046849,120]
[354703027,1740630644177,-3579.43,0.00046849,120]
[354703028,1740630644186,-500.0,0.00046849,120]
[354703029,1740630644195,-765.77,0.00046849,120]
[354703030,1740630644205,-2102.32,0.00046849,120]
[354703031,1740630644217,-592.06,0.00046849,120]
[354703032,1740630644226,-722.55,0.00046849,120]
[354703033,1740630644236,-500.0,0.00046849,120]
[354703034,1740630644247,-636.76,0.00046849,30]
[354703035,1740630644257,-500.0,0.00046849,120]
[354703036,1740630644267,-30457.44,0.00046849,120]
[354703037,1740630644277,-3408.42,0.00046849,120]
[354703038,1740630644287,-500.0,0.00046849,120]
[354703039,1740630644296,-500.0,0.00046849,120]
[354703040,1740630644305,-1345.18,0.00046849,120]
[354703041,1740630644314,-1362.66,0.00046849,120]
[354703042,1740630644326,-2271.22,0.00046849,120]
[354703043,1740630644336,-500.0,0.00046849,120]
[354703044,1740630644345,-2156.57,0.00046849,120]
[354703045,1740630644355,-966.32,0.00046849,120]
[354703046,1740630644364,-2042.94,0.00046849,120]
[354703047,1740630644373,-500.0,0.00046849,120]
[354703048,1740630644382,-11417.47,0.00046849,3]
[354703049,1740630644391,-1445.51,0.00046849,120]
[354703050,1740630644401,-500.0,0.00046849,120]
[354703051,1740630644411,-151.0,0.00046849,110]
[354703052,1740630644420,-151.0,0.00046849,110]
[354703053,1740630644429,-500.0,0.00046849,120]
[354703054,1740630644438,-1254.17,0.00046849,120]
[354703055,1740630644447,-6336.92,0.00046849,120]
[354703056,1740630644456,-500.0,0.00046849,120]
[354703057,1740630644466,-4786.4,0.00046849,120]
[354703058,1740630644475,-500.0,0.00046849,120]
[354703059,1740630644484,-134391.41,0.00046849,7]
[354703060,1740630644494,-1000.0,0.00046849,2]
[354703061,1740630644503,-500.0,0.00046849,120]
[354703062,1740630644512,-1409.1,0.00046849,120]
[354703063,1740630644521,-500.0,0.00046849,120]
[354703064,1740630644530,-1339.84,0.00046849,120]
[354703065,1740630644539,-500.0,0.00046849,120]
[354703066,1740630644548,-2366.43,0.00046849,120]
[354703067,1740630644557,-566.08,0.00046849,120]
[354703068,1740630644566,-500.0,0.00046849,120]
[354703069,1740630644575,-500.0,0.00046849,120]
[354703070,1740630644585,-2400.5,0.00046849,120]
[354703071,1740630644594,-500.0,0.00046849,120]
[354703072,1740630644605,-1719.18,0.00046849,120]
[354703073,1740630644619,-788.53,0.00046849,120]
[354703074,1740630644629,-500.0,0.00046849,120]
[354703075,1740630644639,-500.0,0.00046849,120]
[354703076,1740630644649,-1466.57,0.00046849,120]
[354703077,1740630644659,-1185.365777,0.00046849,2]
[354703078,1740630644668,-1185.365777,0.00046849,2]
[354703079,1740630644677,-2620.4,0.00046849,120]
[354703080,1740630644688,-1477.63,0.00046849,120]
[354703081,1740630644698,-500.0,0.00046849,120]
[354703082,1740630644707,-1185.365777,0.00046849,2]
[354703083,1740630644716,-1185.365777,0.00046849,2]
[354703084,1740630644725,-660.32,0.00046849,120]
[354703085,1740630644734,-5867.05,0.00046849,120]
[354703086,1740630644743,-500.0,0.00046849,120]
[354703087,1740630644753,-500.0,0.00046849,120]
[354703088,1740630644762,-500.0,0.00046849,120]
[354703089,1740630644771,-707.78,0.00046849,120]
[354703090,1740630644781,-3503.69,0.00046849,120]
[354703091,1740630644790,-500.0,0.00046849,120]
[354703092,1740630644799,-500.0,0.00046849,120]
[354703093,1740630644809,-963.9,0.00046849,120]
[354703094,1740630644818,-500.0,0.00046849,120]
[354703095,1740630644828,-1799.41,0.00046849,120]
[354703096,1740630644838,-816.37,0.00046849,120]
[354703097,1740630644847,-500.0,0.00046849,120]
[354703098,1740630644856,-500.0,0.00046849,21]
[354703099,1740630644866,-500.0,0.00046849,120]
[354703100,1740630644875,-760.05,0.00046849,120]
[354703101,1740630644885,-8071.05,0.00046849,120]
[354703102,1740630644895,-1019.36,0.00046849,120]
[354703103,1740630644904,-823.34,0.00046849,120]
[354703104,1740630644913,-500.0,0.00046849,120]
[354703105,1740630644922,-1907.59,0.00046849,120]
[354703106,1740630644931,-434.03831374,0.00046849,120]
[354703107,1740630644940,-500.0,0.00046849,120]
[354703108,1740630644949,-500.0,0.00046849,120]
[354703109,1740630644958,-2993.62,0.00046849,120]
[354703110,1740630644967,-1480.86,0.00046849,120]
[354703111,1740630644976,-1686.43,0.00046849,120]
[354703112,1740630644985,-500.0,0.00046849,120]
[354703113,1740630644995,-605.0,0.00046849,120]
[354703114,1740630645004,-939.0,0.00046849,120]
[354703115,1740630645013,-807.61,0.00046849,120]
[354703116,1740630645022,-675.24,0.00046849,120]
[354703117,1740630645031,-500.0,0.00046849,120]
[354703118,1740630645041,-15776.23,0.00046849,120]
[354703119,1740630645050,-688.56,0.00046849,120]
[354703120,1740630645059,-505.08,0.00046849,120]
[354703121,1740630645067,-35072.75,0.00046849,120]
[354703122,1740630645076,-549.98,0.00046849,120]
[354703123,1740630645085,-500.0,0.00046849,120]
[354703124,1740630645094,-500.0,0.00046849,120]
[354703125,1740630645103,-500.0,0.00046849,120]
[354703126,1740630645112,-500.0,0.00046849,120]
[354703127,1740630645121,-6722.79,0.00046849,120]
[354703128,1740630645130,-500.0,0.00046849,120]
[354703129,1740630645139,-1729.0,0.00046849,120]
[354703130,1740630645148,-3486.38,0.00046849,120]
[354703131,1740630645157,-500.0,0.00046849,120]
[354703132,1740630645166,-7258.41,0.00046849,120]
[354703133,1740630645175,-25034.45,0.00046849,6]
[354703134,1740630645183,-10681.48,0.00046849,120]
[354703135,1740630645192,-500.0,0.00046849,120]
[354703136,1740630645202,-439.8079951,0.0004686,4]
[354703137,1740630645211,-171.24022185,0.00046864,28]
[354703138,1740630645220,-500.0,0.00046873,10]
[354703139,1740630645229,-500.0,0.00046873,10]
[354703140,1740630645238,-200.0,0.00046873,10]
[354703141,1740630645247,-500.0,0.00046873,10]
[354703142,1740630645257,-500.0,0.00046873,10]
[354703143,1740630645266,-500.0,0.00046873,10]
[354703144,1740630645276,-500.0,0.00046995,2]
[354703145,1740630645285,-20151.0,0.00047,120]
[354703146,1740630645295,-6949.06580385,0.00047023,2]
[354703147,1740630645304,-500.0,0.00047123,120]
[354703148,1740630645313,-500.0,0.00047123,120]
[354703149,1740630645322,-500.0,0.00047123,120]
[354703150,1740630645332,-1385.13,0.00047123,120]
[354703151,1740630645342,-500.0,0.00047123,120]
[354703152,1740630645351,-500.0,0.00047123,120]
[354703153,1740630645360,-500.0,0.00047123,120]
[354703154,1740630645370,-500.0,0.00047123,120]
[354703155,1740630645379,-535.91,0.00047123,120]
[354703156,1740630645389,-500.0,0.00047123,120]
[354703157,1740630645398,-579.48,0.00047123,120]
[354703158,1740630645408,-500.0,0.00047123,120]
[354703159,1740630645417,-1024.83,0.00047123,120]
[354703160,1740630645427,-569.51,0.00047123,120]
[354703161,1740630645436,-500.0,0.00047123,120]
[354703162,1740630645445,-500.0,0.00047123,120]
[354703163,1740630645455,-200.0,0.00047123,7]
[354703164,1740630645464,-500.0,0.00047123,120]
[354703165,1740630645474,-500.0,0.00047123,120]
[354703166,1740630645483,-502.66,0.00047123,120]
[354703167,1740630645492,-500.0,0.00047123,120]
[354703168,1740630645502,-500.0,0.00047123,120]
[354703169,1740630645511,-830.48,0.00047123,120]
[354703170,1740630645520,-500.0,0.00047123,120]
[354703171,1740630645530,-500.0,0.00047123,120]
[354703172,1740630645539,-500.0,0.00047123,120]
[354703173,1740630645549,-645.69,0.00047123,120]
[354703174,1740630645558,-794.77,0.00047123,120]
[354703175,1740630645567,-1440.79,0.00047123,120]
[354703176,1740630645576,-500.0,0.00047123,120]
[354703177,1740630645586,-500.0,0.00047123,120]
[354703178,1740630645595,-1321.71,0.00047123,120]
[354703180,1740630645611,-675.47,0.00047123,120]
[354703182,1740630645620,-784.51,0.00047123,120]
[354703184,1740630645630,-500.0,0.00047123,120]
[354703186,1740630645639,-1050.09,0.00047123,120]
[354703188,1740630645650,-500.0,0.00047123,120]
[354703190,1740630645659,-517.2,0.00047123,120]
[354703192,1740630645668,-798.48,0.00047123,120]
[354703194,1740630645677,-500.0,0.00047123,120]
[354703196,1740630645688,-700.09,0.00047123,120]
[354703198,1740630645698,-500.0,0.00047123,120]
[354703200,1740630645707,-500.0,0.00047123,120]
[354703202,1740630645717,-500.0,0.00047123,120]
[354703204,1740630645726,-500.0,0.00047123,120]
[354703206,1740630645736,-685.02,0.00047123,120]
[354703208,1740630645745,-500.0,0.00047123,120]
[354703210,1740630645755,-682.13,0.00047123,120]
[354703212,1740630645764,-500.0,0.00047123,120]
[354703214,1740630645773,-500.0,0.00047123,120]
[354703216,1740630645783,-500.0,0.00047123,120]
[354703218,1740630645792,-2569.83,0.00047123,120]
[354703220,1740630645801,-500.0,0.00047123,120]
[354703222,1740630645812,-500.0,0.00047123,120]
[354703224,1740630645822,-500.0,0.00047123,120]
[354703226,1740630645832,-664.21,0.00047123,120]
[354703228,1740630645842,-500.0,0.00047123,120]
[354703230,1740630645851,-500.0,0.00047123,120]
[354703232,1740630645860,-500.0,0.00047123,120]
[354703234,1740630645870,-500.0,0.00047123,120]
[354703236,1740630645879,-1783.84,0.00047123,120]
[354703238,1740630645889,-2817.09,0.00047123,120]
[354703240,1740630645898,-500.0,0.00047123,120]
[354703242,1740630645908,-500.0,0.00047123,120]
[354703244,1740630645918,-500.0,0.00047123,120]
[354703246,1740630645927,-1700.36,0.00047123,120]
[354703248,1740630645937,-640.33,0.00047123,120]
[354703250,1740630645946,-2537.94,0.00047123,120]
[354703252,1740630645956,-500.0,0.00047123,120]
[354703254,1740630645965,-723.9,0.00047123,120]
[354703256,1740630645974,-639.67,0.00047123,120]
[354703258,1740630645984,-3639.45,0.00047123,120]
[354703260,1740630645994,-1137.78,0.00047123,120]
[354703262,1740630646003,-500.0,0.00047123,120]
[354703264,1740630646013,-1278.73,0.00047123,120]
[354703266,1740630646022,-500.0,0.00047123,120]
[354703268,1740630646031,-500.0,0.00047123,120]
[354703270,1740630646041,-2240.48,0.00047123,120]
[354703272,1740630646050,-731.25,0.00047123,120]
[354703274,1740630646060,-500.0,0.00047123,120]
[354703276,1740630646069,-500.0,0.00047123,120]
[354703278,1740630646078,-500.0,0.00047123,120]
[354703280,1740630646089,-520.39,0.00047123,120]
[354703282,1740630646099,-1182.36,0.00047123,120]
[354703284,1740630646108,-833.66,0.00047123,120]
[354703286,1740630646118,-500.0,0.00047123,120]
[354703288,1740630646128,-604.18,0.00047123,120]
[354703291,1740630646138,-596.21,0.00047123,120]
[354703293,1740630646147,-500.0,0.00047123,120]
[354703295,1740630646157,-523.15,0.00047123,120]
[354703297,1740630646166,-500.0,0.00047123,120]
[354703299,1740630646175,-500.0,0.00047123,120]
[354703301,1740630646185,-500.0,0.00047123,120]
[354703303,1740630646194,-1478.0,0.00047123,120]
[354703305,1740630646204,-1517.22,0.00047123,120]
[354703307,1740630646213,-3011.34,0.00047123,120]
[354703309,1740630646223,-1623.31,0.00047123,120]
[354703311,1740630646232,-624.09,0.00047123,120]
[354703313,1740630646241,-500.0,0.00047123,120]
[354703315,1740630646250,-600.71,0.00047123,120]
[354703317,1740630646259,-500.0,0.00047123,120]
[354703319,1740630646269,-1486.29,0.00047123,120]
[354703321,1740630646279,-500.0,0.00047123,120]
[354703323,1740630646288,-500.0,0.00047123,120]
[354703325,1740630646298,-1228.91,0.00047123,120]
[354703327,1740630646307,-734.33,0.00047123,120]
[354703329,1740630646317,-500.0,0.00047123,120]
[354703331,1740630646326,-1058.92,0.00047123,120]
[354703333,1740630646336,-791.0,0.00047123,120]
[354703335,1740630646347,-500.0,0.00047123,120]
[354703338,1740630646357,-500.0,0.00047123,120]
[354703340,1740630646366,-1820.74,0.00047123,120]
[354703342,1740630646376,-675.66,0.00047123,120]
[354703344,1740630646385,-500.0,0.00047123,120]
[354703346,1740630646394,-1399.76,0.00047123,120]
[354703348,1740630646404,-500.0,0.00047123,120]
[354703350,1740630646413,-789.91,0.00047123,120]
[354703352,1740630646423,-500.0,0.00047123,120]
[354703354,1740630646432,-500.0,0.00047123,120]
[354703356,1740630646441,-716.03,0.00047123,120]
[354703358,1740630646451,-500.0,0.00047123,120]
[354703360,1740630646461,-500.0,0.00047123,120]
[354703362,1740630646470,-2375.59,0.00047123,120]
[354703364,1740630646479,-1106.8,0.00047123,120]
[354703366,1740630646488,-538.05,0.00047123,120]
[354703368,1740630646498,-857.0,0.00047123,120]
[354703370,1740630646507,-527.43,0.00047123,120]
[354703372,1740630646517,-1900.59,0.00047123,120]
[354703374,1740630646526,-500.0,0.00047123,120]
[354703376,1740630646536,-614.77432115,0.00047123,120]
[354703378,1740630646545,-706.0,0.00047123,120]
[354703380,1740630646554,-500.0,0.00047123,15]
[354703382,1740630646564,-500.0,0.00047123,120]
[354703384,1740630646573,-592.18,0.00047123,120]
[354703387,1740630646584,-814.71,0.00047123,120]
[354703389,1740630646593,-519.1,0.00047123,120]
[354703391,1740630646603,-798.3,0.00047123,120]
[354703392,1740630646614,-500.0,0.00047123,120]
[354703394,1740630646623,-500.0,0.00047123,120]
[354703396,1740630646633,-776.16,0.00047123,120]
[354703398,1740630646642,-500.0,0.00047123,120]
[354703400,1740630646654,-772.95,0.00047123,120]
[354703403,1740630646663,-2695.43,0.00047123,120]
[354703405,1740630646672,-1015.01,0.00047123,120]
[354703407,1740630646681,-505.54545043,0.00047123,120]
[354703409,1740630646691,-658.28,0.00047123,120]
[354703411,1740630646701,-792.87,0.00047123,120]
[354703413,1740630646710,-1162.89,0.00047123,120]
[354703415,1740630646720,-1402.1,0.00047123,120]
[354703417,1740630646730,-500.0,0.00047123,120]
[354703419,1740630646740,-500.0,0.00047123,120]
[354703421,1740630646749,-500.0,0.00047123,120]
[354703423,1740630646759,-500.0,0.00047123,120]
[354703425,1740630646768,-500.0,0.00047123,120]
[354703427,1740630646777,-743.1,0.00047123,120]
[354703429,1740630646787,-500.0,0.00047123,120]
[354703431,1740630646796,-1231.6,0.00047123,120]
[354703433,1740630646806,-500.0,0.00047123,120]
[354703435,1740630646816,-714.18,0.00047123,120]
[354703437,1740630646825,-1026.71,0.00047123,120]
[354703439,1740630646835,-912.45,0.00047123,120]
[354703441,1740630646844,-500.0,0.00047123,120]
[354703443,1740630646854,-500.0,0.00047123,120]
[354703445,1740630646864,-1786.14,0.00047123,120]
[354703447,1740630646874,-548.47,0.00047123,120]
[354703449,1740630646883,-500.0,0.00047123,120]
[354703451,1740630646893,-2993.55,0.00047123,120]
[354703453,1740630646902,-500.0,0.00047123,120]
[354703455,1740630646912,-573.21,0.00047123,120]
[354703457,1740630646921,-508.13,0.00047123,120]
[354703459,1740630646931,-506.69146413,0.00047123,120]
[354703461,1740630646940,-500.0,0.00047123,120]
[354703463,1740630646950,-721.6,0.00047123,120]
[354703465,1740630646959,-1977.45,0.00047123,120]
[354703467,1740630646969,-1208.96,0.00047123,120]
[354703469,1740630646979,-500.0,0.00047123,120]
[354703471,1740630646988,-574.26,0.00047123,120]
[354703473,1740630646997,-2615.73,0.00047123,120]
[354703475,1740630647007,-1260.74,0.00047123,120]
[354703477,1740630647016,-798.33,0.00047123,120]
[354703479,1740630647026,-511.11,0.00047123,120]
[354703481,1740630647036,-500.0,0.00047123,120]
[354703484,1740630647047,-500.0,0.00047123,120]
[354703486,1740630647057,-3579.43,0.00047123,120]
[354703488,1740630647066,-500.0,0.00047123,120]
[354703490,1740630647076,-765.77,0.00047123,120]
[354703492,1740630647086,-2102.32,0.00047123,120]
[354703494,1740630647096,-592.06,0.00047123,120]
[354703496,1740630647105,-722.55,0.00047123,120]
[354703498,1740630647115,-500.0,0.00047123,120]
[354703500,1740630647125,-636.76,0.00047123,30]
[354703502,1740630647134,-500.0,0.00047123,120]
[354703504,1740630647143,-29989.37056309,0.00047123,120]
[354703579,1740630647879,-669.46,0.00046575,120]
[354703580,1740630647888,-500.0,0.00046575,120]
[354703581,1740630647897,-36.45140788,0.00046575,120]
[354704393,1740631414207,1052.2,0.0003,30]
[354704394,1740631568585,4673.1058813,0.0003,30]
[354704395,1740631617127,-354.0,0.000252,3]
[354704396,1740631617147,-137.85009645,0.000252,3]
[354704532,1740631837958,-216.14990355,0.000252,3]
[354704533,1740631837968,-176.46623769,0.000279,2]
[354704534,1740631837977,-176.46623769,0.000329,2]